[Event "*** Titled Tuesday Blitz"]
[Site "Chess.com"]
[Date "2020.04.07"]
[Round "7"]
[White "Colombiano07"]
[Black "erlesfar"]
[Result "1/2-1/2"]
[WhiteElo "2236"]
[BlackElo "2030"]
[TimeControl "180+1"]
[EndTime "14:20:38 PDT"]
[Termination "Game drawn by repetition"]

1. Nf3 {[%clk 0:03:00.9]} 1... g6 {[%clk 0:02:59]} 2. d3 {[%clk 0:02:57.8]} 2...
Bg7 {[%clk 0:02:58.9]} 3. g3 {[%clk 0:02:58.3]} 3... e5 {[%clk 0:02:58]} 4. Bg2
{[%clk 0:02:58.9]} 4... Nc6 {[%clk 0:02:58.1]} 5. O-O {[%clk 0:02:59.5]} 5... d6
{[%clk 0:02:57.1]} 6. c4 {[%clk 0:02:59.8]} 6... h5 {[%clk 0:02:56.7]} 7. Bg5
{[%clk 0:02:58.1]} 7... Nge7 {[%clk 0:02:53]} 8. Nc3 {[%clk 0:02:57.8]} 8... f6
{[%clk 0:02:53]} 9. Be3 {[%clk 0:02:57.1]} 9... Be6 {[%clk 0:02:52.5]} 10. Rb1
{[%clk 0:02:56.4]} 10... d5 {[%clk 0:02:49.5]} 11. cxd5 {[%clk 0:02:54]} 11...
Nxd5 {[%clk 0:02:49.6]} 12. Nxd5 {[%clk 0:02:54.7]} 12... Bxd5 {[%clk
0:02:49.6]} 13. Qa4 {[%clk 0:02:50.1]} 13... O-O {[%clk 0:02:44.5]} 14. b4
{[%clk 0:02:48]} 14... b6 {[%clk 0:02:23.3]} 15. Rbc1 {[%clk 0:02:45.8]} 15...
Qd7 {[%clk 0:02:21.5]} 16. Nxe5 {[%clk 0:02:28.3]} 16... fxe5 {[%clk 0:02:17.5]}
17. Bxd5+ {[%clk 0:02:27.5]} 17... Qxd5 {[%clk 0:02:17.4]} 18. Qxc6 {[%clk
0:02:28.2]} 18... Qxa2 {[%clk 0:02:17]} 19. Qxg6 {[%clk 0:02:27.8]} 19... Qf7
{[%clk 0:02:15.4]} 20. Qxf7+ {[%clk 0:02:09.1]} 20... Rxf7 {[%clk 0:02:15.2]}
21. b5 {[%clk 0:02:09.7]} 21... a5 {[%clk 0:02:14.8]} 22. bxa6 {[%clk
0:02:09.4]} 22... Rxa6 {[%clk 0:02:14.5]} 23. Rc6 {[%clk 0:02:07.9]} 23... Ra2
{[%clk 0:02:13.1]} 24. Rfc1 {[%clk 0:01:56.9]} 24... Ra7 {[%clk 0:02:12.7]} 25.
h4 {[%clk 0:01:54.9]} 25... Rb7 {[%clk 0:02:12.6]} 26. R1c4 {[%clk 0:01:31.3]}
26... Kf8 {[%clk 0:02:11.1]} 27. Bh6 {[%clk 0:01:28.6]} 27... Bxh6 {[%clk
0:02:06.4]} 28. Rxh6 {[%clk 0:01:29.5]} 28... b5 {[%clk 0:02:06.7]} 29. Rb4
{[%clk 0:01:25.2]} 29... c5 {[%clk 0:02:06.2]} 30. Rb2 {[%clk 0:01:23.9]} 30...
b4 {[%clk 0:02:01.5]} 31. Rxh5 {[%clk 0:01:23.5]} 31... Rfe7 {[%clk 0:01:58.1]}
32. Kg2 {[%clk 0:01:08.1]} 32... Ke8 {[%clk 0:01:56.2]} 33. Kf3 {[%clk
0:01:07.7]} 33... Kd7 {[%clk 0:01:56.4]} 34. Ke4 {[%clk 0:01:07.8]} 34... Kc6
{[%clk 0:01:56.5]} 35. Rxe5 {[%clk 0:01:06.9]} 35... Rxe5+ {[%clk 0:01:55.8]}
36. Kxe5 {[%clk 0:01:07.8]} 36... Kb5 {[%clk 0:01:55.7]} 37. h5 {[%clk
0:01:04.5]} 37... c4 {[%clk 0:01:55]} 38. dxc4+ {[%clk 0:01:03.9]} 38... Kxc4
{[%clk 0:01:55.3]} 39. g4 {[%clk 0:00:58.3]} 39... Kc3 {[%clk 0:01:54.7]} 40.
Rb1 {[%clk 0:00:58.2]} 40... Kc2 {[%clk 0:01:54.9]} 41. Rh1 {[%clk 0:00:54.3]}
41... b3 {[%clk 0:01:50.8]} 42. h6 {[%clk 0:00:53.3]} 42... b2 {[%clk 0:01:51]}
43. g5 {[%clk 0:00:50.6]} 43... Rd7 {[%clk 0:01:46.3]} 44. g6 {[%clk 0:00:44.2]}
44... Rd1 {[%clk 0:01:45.9]} 45. Rxd1 {[%clk 0:00:44]} 45... Kxd1 {[%clk
0:01:45.9]} 46. g7 {[%clk 0:00:41.8]} 46... b1=Q {[%clk 0:01:44]} 47. g8=Q
{[%clk 0:00:40.2]} 47... Qb2+ {[%clk 0:01:42.3]} 48. Kf4 {[%clk 0:00:35.7]}
48... Qd2+ {[%clk 0:01:40.4]} 49. Kg3 {[%clk 0:00:30.1]} 49... Qxh6 {[%clk
0:01:39]} 50. Qg4 {[%clk 0:00:21.3]} 50... Ke1 {[%clk 0:01:34.4]} 51. e4 {[%clk
0:00:19.5]} 51... Qd2 {[%clk 0:01:23]} 52. e5 {[%clk 0:00:15.8]} 52... Qxf2+
{[%clk 0:01:22.3]} 53. Kh3 {[%clk 0:00:16]} 53... Qf1+ {[%clk 0:01:17]} 54. Kh4
{[%clk 0:00:15.7]} 54... Qh1+ {[%clk 0:01:15.6]} 55. Kg5 {[%clk 0:00:15.6]}
55... Qd5 {[%clk 0:01:14.3]} 56. Qf5 {[%clk 0:00:10.8]} 56... Qd8+ {[%clk
0:01:11.6]} 57. Qf6 {[%clk 0:00:10.7]} 57... Qg8+ {[%clk 0:01:11.6]} 58. Kf5
{[%clk 0:00:10.9]} 58... Qh7+ {[%clk 0:01:10.1]} 59. Ke6 {[%clk 0:00:10.9]}
59... Qg8+ {[%clk 0:01:10.1]} 60. Kd7 {[%clk 0:00:10.6]} 60... Qd5+ {[%clk
0:01:09.8]} 61. Qd6 {[%clk 0:00:11]} 61... Qf7+ {[%clk 0:01:07]} 62. Kd8 {[%clk
0:00:10.6]} 62... Qg8+ {[%clk 0:01:05.4]} 63. Kc7 {[%clk 0:00:11]} 63... Qc4+
{[%clk 0:01:04.6]} 64. Kb6 {[%clk 0:00:10.7]} 64... Qb3+ {[%clk 0:01:03.4]} 65.
Kc6 {[%clk 0:00:10]} 65... Qc4+ {[%clk 0:01:02.7]} 66. Kd7 {[%clk 0:00:08]}
66... Qf7+ {[%clk 0:01:02.2]} 67. Kc8 {[%clk 0:00:06.8]} 67... Qc4+ {[%clk
0:01:00.4]} 68. Qc7 {[%clk 0:00:06.3]} 68... Qe6+ {[%clk 0:00:59.3]} 69. Kb7
{[%clk 0:00:05.9]} 69... Qd5+ {[%clk 0:00:58.8]} 70. Kb6 {[%clk 0:00:05.3]}
70... Qb3+ {[%clk 0:00:58.2]} 71. Kc6 {[%clk 0:00:04.8]} 71... Qe6+ {[%clk
0:00:57.2]} 72. Qd6 {[%clk 0:00:04.2]} 72... Qc4+ {[%clk 0:00:57.1]} 73. Kb6
{[%clk 0:00:04.1]} 73... Qb3+ {[%clk 0:00:56.5]} 74. Ka5 {[%clk 0:00:04.2]}
74... Qa2+ {[%clk 0:00:54.8]} 75. Kb5 {[%clk 0:00:04.2]} 75... Qe2+ {[%clk
0:00:50.9]} 76. Kb4 {[%clk 0:00:03.3]} 76... Qb2+ {[%clk 0:00:50]} 77. Kc4
{[%clk 0:00:03.3]} 77... Qa2+ {[%clk 0:00:49.6]} 78. Kd3 {[%clk 0:00:02.1]}
78... Qd2+ {[%clk 0:00:47.5]} 79. Ke4 {[%clk 0:00:02.5]} 79... Qe2+ {[%clk
0:00:47]} 80. Kf5 {[%clk 0:00:02.8]} 80... Qh5+ {[%clk 0:00:46.9]} 81. Ke6
{[%clk 0:00:01.7]} 81... Qe8+ {[%clk 0:00:46]} 82. Qe7 {[%clk 0:00:01.5]} 82...
Qc6+ {[%clk 0:00:45.6]} 83. Qd6 {[%clk 0:00:01.5]} 83... Qe8+ {[%clk 0:00:45.4]}
84. Kf5 {[%clk 0:00:02.4]} 84... Qh5+ {[%clk 0:00:43.1]} 85. Kf6 {[%clk
0:00:02.6]} 85... Qh6+ {[%clk 0:00:41.6]} 86. Ke7 {[%clk 0:00:03.5]} 86... Qg7+
{[%clk 0:00:37.9]} 87. Kd8 {[%clk 0:00:04.4]} 87... Qg8+ {[%clk 0:00:37.8]} 88.
Kd7 {[%clk 0:00:05.3]} 88... Qf7+ {[%clk 0:00:37.6]} 1/2-1/2

[Event "*** Titled Tuesday Blitz"]
[Site "Chess.com"]
[Date "2020.04.07"]
[Round "7"]
[White "tteshan"]
[Black "Lony7"]
[Result "0-1"]
[WhiteElo "2196"]
[BlackElo "2385"]
[TimeControl "180+1"]
[EndTime "14:20:43 PDT"]
[Termination "Lony7 won by resignation"]

1. e4 {[%clk 0:03:00.9]} 1... e6 {[%clk 0:02:59.3]} 2. d4 {[%clk 0:02:59.6]}
2... d5 {[%clk 0:03:00.2]} 3. Nd2 {[%clk 0:02:57]} 3... c5 {[%clk 0:02:59.9]} 4.
exd5 {[%clk 0:02:55.9]} 4... Qxd5 {[%clk 0:03:00.8]} 5. Ngf3 {[%clk 0:02:56.1]}
5... cxd4 {[%clk 0:03:01]} 6. Bc4 {[%clk 0:02:56.3]} 6... Qd7 {[%clk 0:03:01.7]}
7. O-O {[%clk 0:02:55.3]} 7... Nc6 {[%clk 0:03:02.2]} 8. Nb3 {[%clk 0:02:55.2]}
8... a6 {[%clk 0:03:02.1]} 9. Bf4 {[%clk 0:02:52]} 9... b5 {[%clk 0:03:00.6]}
10. Be2 {[%clk 0:02:52.3]} 10... Bb7 {[%clk 0:02:58.6]} 11. Nbxd4 {[%clk
0:02:49]} 11... Nxd4 {[%clk 0:02:58]} 12. Nxd4 {[%clk 0:02:49.1]} 12... Rd8
{[%clk 0:02:48]} 13. c3 {[%clk 0:02:40.2]} 13... Nf6 {[%clk 0:02:42.5]} 14. a4
{[%clk 0:02:37.1]} 14... b4 {[%clk 0:02:41.6]} 15. Qb3 {[%clk 0:02:31.9]} 15...
Nd5 {[%clk 0:01:51]} 16. Bg3 {[%clk 0:02:21.1]} 16... Be7 {[%clk 0:01:48]} 17.
Rad1 {[%clk 0:02:17.4]} 17... Qc8 {[%clk 0:01:22.7]} 18. Bf3 {[%clk 0:01:42.5]}
18... O-O {[%clk 0:01:19]} 19. cxb4 {[%clk 0:01:32.6]} 19... Nxb4 {[%clk
0:01:17.2]} 20. Rc1 {[%clk 0:01:25]} 20... Qa8 {[%clk 0:01:15.8]} 21. Bxb7
{[%clk 0:01:20.7]} 21... Qxb7 {[%clk 0:01:16.7]} 22. Nc6 {[%clk 0:01:15.3]}
22... Rd3 {[%clk 0:00:53.1]} 23. Nxe7+ {[%clk 0:01:05.4]} 23... Qxe7 {[%clk
0:00:54]} 24. Qc4 {[%clk 0:01:04.6]} 24... Rfd8 {[%clk 0:00:46.9]} 25. Bh4
{[%clk 0:00:45.2]} 25... f6 {[%clk 0:00:46.5]} 26. Bg3 {[%clk 0:00:43.5]} 26...
R3d4 {[%clk 0:00:40.7]} 27. Qc7 {[%clk 0:00:42.7]} 27... R8d7 {[%clk 0:00:39]}
28. Qb8+ {[%clk 0:00:40.7]} 28... Kf7 {[%clk 0:00:38.8]} 29. h3 {[%clk
0:00:37.3]} 29... Rb7 {[%clk 0:00:29.4]} 30. Qh8 {[%clk 0:00:37.2]} 30... Kg6
{[%clk 0:00:28.5]} 31. h4 {[%clk 0:00:35.7]} 31... h5 {[%clk 0:00:27.8]} 32. Rc8
{[%clk 0:00:30.4]} 32... Nd5 {[%clk 0:00:23.9]} 33. Re8 {[%clk 0:00:29.6]} 33...
Qf7 {[%clk 0:00:22.8]} 34. Rf8 {[%clk 0:00:29.1]} 34... Qe7 {[%clk 0:00:21.4]}
35. Re1 {[%clk 0:00:28.5]} 35... e5 {[%clk 0:00:20]} 36. Re8 {[%clk 0:00:28.2]}
36... Qf7 {[%clk 0:00:19.8]} 37. Bxe5 {[%clk 0:00:27.2]} 37... Rxh4 {[%clk
0:00:15.2]} 38. Bg3 {[%clk 0:00:25.9]} 38... Rg4 {[%clk 0:00:15]} 39. Rf8 {[%clk
0:00:24.7]} 39... Qd7 {[%clk 0:00:14.2]} 40. Rd8 {[%clk 0:00:24.4]} 40... Qf5
{[%clk 0:00:11]} 41. Qe8+ {[%clk 0:00:24.1]} 41... Kg5 {[%clk 0:00:09.9]} 42.
Rd1 {[%clk 0:00:21.8]} 42... Nf4 {[%clk 0:00:06.9]} 43. Qe3 {[%clk 0:00:21.3]}
43... h4 {[%clk 0:00:04.7]} 44. R1d5 {[%clk 0:00:19.4]} 44... hxg3 {[%clk
0:00:04.1]} 45. Rxf5+ {[%clk 0:00:18.8]} 45... Kxf5 {[%clk 0:00:04.6]} 46. Qc5+
{[%clk 0:00:18.6]} 46... Kg6 {[%clk 0:00:04.4]} 47. fxg3 {[%clk 0:00:19]} 47...
Rxg3 {[%clk 0:00:04.5]} 48. Qc2+ {[%clk 0:00:19.6]} 48... Kg5 {[%clk 0:00:03.7]}
49. Rd4 {[%clk 0:00:20]} 49... Rxg2+ {[%clk 0:00:03.6]} 50. Qxg2+ {[%clk
0:00:20]} 50... Nxg2 {[%clk 0:00:04.2]} 51. Kxg2 {[%clk 0:00:19.5]} 51... Rxb2+
{[%clk 0:00:04.9]} 52. Kf3 {[%clk 0:00:19.5]} 52... Ra2 {[%clk 0:00:05]} 53.
Rd5+ {[%clk 0:00:19]} 53... f5 {[%clk 0:00:05.2]} 54. a5 {[%clk 0:00:19.2]}
54... g6 {[%clk 0:00:05]} 55. Rc5 {[%clk 0:00:19]} 55... Ra4 {[%clk 0:00:05.1]}
56. Rd5 {[%clk 0:00:18.4]} 56... Ra3+ {[%clk 0:00:05]} 57. Kf2 {[%clk
0:00:18.8]} 57... Kh5 {[%clk 0:00:04.8]} 58. Rc5 {[%clk 0:00:18.8]} 58... Kg5
{[%clk 0:00:03.8]} 59. Rd5 {[%clk 0:00:19]} 59... Kf4 {[%clk 0:00:04]} 60. Rc5
{[%clk 0:00:17.7]} 60... Ra2+ {[%clk 0:00:04.3]} 61. Kf1 {[%clk 0:00:17.2]}
61... g5 {[%clk 0:00:04.7]} 62. Rc4+ {[%clk 0:00:16.6]} 62... Kg3 {[%clk
0:00:04.4]} 63. Rc3+ {[%clk 0:00:16.9]} 63... Kg4 {[%clk 0:00:04.5]} 64. Rc5
{[%clk 0:00:17.2]} 64... f4 {[%clk 0:00:05]} 65. Rd5 {[%clk 0:00:16.6]} 65...
Kh4 {[%clk 0:00:04.9]} 66. Rc5 {[%clk 0:00:16.1]} 66... g4 {[%clk 0:00:04.2]}
67. Rc4 {[%clk 0:00:16.2]} 67... Kg3 {[%clk 0:00:04.2]} 68. Rc3+ {[%clk
0:00:15.9]} 68... f3 {[%clk 0:00:04.6]} 69. Ke1 {[%clk 0:00:15.3]} 69... Kg2
{[%clk 0:00:05]} 70. Rc1 {[%clk 0:00:12.4]} 70... g3 {[%clk 0:00:05.1]} 0-1

[Event "*** Titled Tuesday Blitz"]
[Site "Chess.com"]
[Date "2020.04.07"]
[Round "7"]
[White "rasmussvane"]
[Black "NewBornNow"]
[Result "1-0"]
[WhiteElo "2879"]
[BlackElo "2665"]
[TimeControl "180+1"]
[EndTime "14:20:46 PDT"]
[Termination "rasmussvane won on time"]

1. Nf3 {[%clk 0:03:00.9]} 1... c5 {[%clk 0:02:58]} 2. c4 {[%clk 0:03:00.1]} 2...
Nc6 {[%clk 0:02:56.4]} 3. Nc3 {[%clk 0:03:00.5]} 3... g6 {[%clk 0:02:56.5]} 4.
e3 {[%clk 0:03:00.4]} 4... Bg7 {[%clk 0:02:52.8]} 5. d4 {[%clk 0:03:00.8]} 5...
d6 {[%clk 0:02:53.1]} 6. Be2 {[%clk 0:02:59.2]} 6... Nf6 {[%clk 0:02:52]} 7. h3
{[%clk 0:02:58.7]} 7... O-O {[%clk 0:02:51.1]} 8. O-O {[%clk 0:02:58.4]} 8...
cxd4 {[%clk 0:02:51.1]} 9. exd4 {[%clk 0:02:58.5]} 9... d5 {[%clk 0:02:50.5]}
10. Re1 {[%clk 0:02:56.3]} 10... dxc4 {[%clk 0:02:41.6]} 11. Bxc4 {[%clk
0:02:57.2]} 11... Na5 {[%clk 0:02:41]} 12. Bd3 {[%clk 0:02:51.5]} 12... b6
{[%clk 0:02:40.8]} 13. Qe2 {[%clk 0:02:38.1]} 13... Bb7 {[%clk 0:02:37]} 14. Be3
{[%clk 0:02:33.9]} 14... Rc8 {[%clk 0:02:32.9]} 15. Rad1 {[%clk 0:02:27.6]}
15... Nd5 {[%clk 0:02:32.2]} 16. Bd2 {[%clk 0:02:18.1]} 16... Nb4 {[%clk
0:02:31.8]} 17. Bg5 {[%clk 0:01:31.4]} 17... Nxd3 {[%clk 0:02:30.8]} 18. Rxd3
{[%clk 0:01:30.7]} 18... Re8 {[%clk 0:02:25.2]} 19. Re3 {[%clk 0:01:25.1]} 19...
f6 {[%clk 0:02:23.5]} 20. Bf4 {[%clk 0:01:18.4]} 20... Bf8 {[%clk 0:02:16]} 21.
b3 {[%clk 0:01:07.3]} 21... Nc6 {[%clk 0:02:06.3]} 22. Rd1 {[%clk 0:00:49.6]}
22... Nb4 {[%clk 0:02:01]} 23. Bg3 {[%clk 0:00:36.9]} 23... Nd5 {[%clk
0:01:57.6]} 24. Nxd5 {[%clk 0:00:37.2]} 24... Bxd5 {[%clk 0:01:48.9]} 25. Nd2
{[%clk 0:00:37]} 25... Bh6 {[%clk 0:01:45.3]} 26. Rd3 {[%clk 0:00:24.9]} 26...
Rc2 {[%clk 0:01:42.5]} 27. a4 {[%clk 0:00:25.2]} 27... Qa8 {[%clk 0:01:38.6]}
28. f3 {[%clk 0:00:25.3]} 28... Qc6 {[%clk 0:01:31.3]} 29. Qe1 {[%clk
0:00:24.5]} 29... Rc3 {[%clk 0:01:16.7]} 30. Rxc3 {[%clk 0:00:18.2]} 30... Qxc3
{[%clk 0:01:15.2]} 31. Ne4 {[%clk 0:00:18.5]} 31... Qxe1+ {[%clk 0:01:00.1]} 32.
Rxe1 {[%clk 0:00:19.4]} 32... Kf7 {[%clk 0:00:58.6]} 33. Bh4 {[%clk 0:00:12.2]}
33... Rc8 {[%clk 0:00:54.7]} 34. Bf2 {[%clk 0:00:04.1]} 34... Bxb3 {[%clk
0:00:51.7]} 35. Ra1 {[%clk 0:00:04.3]} 35... Rc1+ {[%clk 0:00:49.7]} 36. Rxc1
{[%clk 0:00:03.5]} 36... Bxc1 {[%clk 0:00:49.1]} 37. Nc3 {[%clk 0:00:04.4]}
37... Bd2 {[%clk 0:00:43.6]} 38. Nb1 {[%clk 0:00:02.9]} 38... Bb4 {[%clk
0:00:41.9]} 39. Be3 {[%clk 0:00:02.8]} 39... Bxa4 {[%clk 0:00:41.7]} 40. Kf2
{[%clk 0:00:03.7]} 40... Bc2 {[%clk 0:00:40.3]} 41. Nd2 {[%clk 0:00:03.7]} 41...
a5 {[%clk 0:00:40]} 42. Nc4 {[%clk 0:00:04.1]} 42... b5 {[%clk 0:00:39.7]} 43.
Nb6 {[%clk 0:00:04.6]} 43... a4 {[%clk 0:00:38.5]} 44. Nd5 {[%clk 0:00:05]}
44... Ba5 {[%clk 0:00:38.1]} 45. Bc1 {[%clk 0:00:03.8]} 45... b4 {[%clk
0:00:36.3]} 46. Ne3 {[%clk 0:00:04.1]} 46... Bb3 {[%clk 0:00:34.6]} 47. Ke2
{[%clk 0:00:04.6]} 47... a3 {[%clk 0:00:34.6]} 48. Kd3 {[%clk 0:00:05]} 48... e6
{[%clk 0:00:30.4]} 49. Nc4 {[%clk 0:00:05.2]} 49... Bc7 {[%clk 0:00:27.2]} 50.
Ne3 {[%clk 0:00:02.4]} 50... Bd6 {[%clk 0:00:23.1]} 51. Nc4 {[%clk 0:00:02.7]}
51... Be7 {[%clk 0:00:22.3]} 52. Na5 {[%clk 0:00:02.5]} 52... Bd5 {[%clk
0:00:21.3]} 53. Nc4 {[%clk 0:00:02.9]} 53... b3 {[%clk 0:00:17]} 54. Nxa3 {[%clk
0:00:01.9]} 54... Bb4 {[%clk 0:00:15.4]} 55. Bb2 {[%clk 0:00:02.1]} 55... g5
{[%clk 0:00:13.1]} 56. Nb1 {[%clk 0:00:02.6]} 56... h5 {[%clk 0:00:11.9]} 57.
Nd2 {[%clk 0:00:03.2]} 57... g4 {[%clk 0:00:10.3]} 58. hxg4 {[%clk 0:00:03.8]}
58... hxg4 {[%clk 0:00:10.3]} 59. fxg4 {[%clk 0:00:04.3]} 59... Bxg2 {[%clk
0:00:10]} 60. Nxb3 {[%clk 0:00:04.7]} 60... Bf3 {[%clk 0:00:10.1]} 61. Nd2
{[%clk 0:00:05.1]} 61... Bxg4 {[%clk 0:00:09.5]} 62. Ke3 {[%clk 0:00:05.4]}
62... Bf5 {[%clk 0:00:07.2]} 63. Nf3 {[%clk 0:00:05.3]} 63... Bg4 {[%clk
0:00:06.7]} 64. Nd2 {[%clk 0:00:05.6]} 64... Kg6 {[%clk 0:00:06]} 65. Nc4 {[%clk
0:00:05.2]} 65... Bd1 {[%clk 0:00:04.5]} 66. Bc1 {[%clk 0:00:04.5]} 66... Bb3
{[%clk 0:00:03.7]} 67. Nd2 {[%clk 0:00:04.4]} 67... Bd5 {[%clk 0:00:03.7]} 68.
Nf1 {[%clk 0:00:04.9]} 68... Kf5 {[%clk 0:00:03.8]} 69. Ng3+ {[%clk 0:00:05.1]}
69... Kg4 {[%clk 0:00:04.7]} 70. Ne2 {[%clk 0:00:06]} 70... Bd6 {[%clk
0:00:03.4]} 71. Bd2 {[%clk 0:00:04.4]} 71... f5 {[%clk 0:00:02.4]} 72. Nc3
{[%clk 0:00:04.8]} 72... f4+ {[%clk 0:00:01.9]} 73. Kf2 {[%clk 0:00:05.1]} 73...
f3 {[%clk 0:00:01.3]} 74. Nd1 {[%clk 0:00:03.9]} 1-0

[Event "*** Titled Tuesday Blitz"]
[Site "Chess.com"]
[Date "2020.04.07"]
[Round "7"]
[White "SamuelGhimpu2003"]
[Black "SahaNeelash"]
[Result "1/2-1/2"]
[WhiteElo "2679"]
[BlackElo "2517"]
[TimeControl "180+1"]
[EndTime "14:20:47 PDT"]
[Termination "Game drawn by repetition"]

1. Nf3 {[%clk 0:03:00.9]} 1... d5 {[%clk 0:02:57.3]} 2. c4 {[%clk 0:02:59.5]}
2... e6 {[%clk 0:02:56]} 3. b3 {[%clk 0:02:57.4]} 3... Nf6 {[%clk 0:02:56]} 4.
e3 {[%clk 0:02:57.6]} 4... Be7 {[%clk 0:02:56.2]} 5. Bb2 {[%clk 0:02:58]} 5...
O-O {[%clk 0:02:55.7]} 6. Be2 {[%clk 0:02:58.4]} 6... b6 {[%clk 0:02:54.5]} 7.
O-O {[%clk 0:02:58.3]} 7... Bb7 {[%clk 0:02:54.9]} 8. d3 {[%clk 0:02:58.7]} 8...
Nbd7 {[%clk 0:02:55.2]} 9. Nbd2 {[%clk 0:02:59.2]} 9... c5 {[%clk 0:02:55.5]}
10. Rc1 {[%clk 0:02:57.9]} 10... Rc8 {[%clk 0:02:55.4]} 11. Qc2 {[%clk
0:02:57.8]} 11... Qc7 {[%clk 0:02:55.7]} 12. Qb1 {[%clk 0:02:57.8]} 12... Rfd8
{[%clk 0:02:55.5]} 13. cxd5 {[%clk 0:02:55.7]} 13... Nxd5 {[%clk 0:02:53.9]} 14.
a3 {[%clk 0:02:55.5]} 14... Bf6 {[%clk 0:02:52.6]} 15. d4 {[%clk 0:02:52.7]}
15... Qb8 {[%clk 0:02:51.2]} 16. Ne4 {[%clk 0:02:52.7]} 16... Be7 {[%clk
0:02:48.5]} 17. dxc5 {[%clk 0:02:29.2]} 17... Nxc5 {[%clk 0:02:45.7]} 18. Nxc5
{[%clk 0:02:27.9]} 18... Rxc5 {[%clk 0:02:41.9]} 19. Rxc5 {[%clk 0:02:22.5]}
19... Bxc5 {[%clk 0:02:42.8]} 20. Bd3 {[%clk 0:02:13.4]} 20... h6 {[%clk
0:02:35.2]} 21. Rd1 {[%clk 0:02:06.5]} 21... Be7 {[%clk 0:02:30.6]} 22. Bh7+
{[%clk 0:02:00.7]} 22... Kf8 {[%clk 0:02:29.5]} 23. Be4 {[%clk 0:02:01.6]} 23...
Nf6 {[%clk 0:02:19.4]} 24. Rxd8+ {[%clk 0:01:46.5]} 24... Bxd8 {[%clk
0:02:20.3]} 25. Bxb7 {[%clk 0:01:42.7]} 25... Qxb7 {[%clk 0:02:20.6]} 26. h3
{[%clk 0:01:43.6]} 26... Qd5 {[%clk 0:02:06.1]} 27. Qc2 {[%clk 0:01:42.4]} 27...
Ke8 {[%clk 0:01:59]} 28. b4 {[%clk 0:01:28.2]} 28... g6 {[%clk 0:01:50.3]} 29.
Ne5 {[%clk 0:01:08.1]} 29... Nd7 {[%clk 0:01:36.7]} 30. e4 {[%clk 0:00:56]}
30... Qd6 {[%clk 0:01:19.7]} 31. Nc4 {[%clk 0:00:56]} 31... Qc7 {[%clk
0:01:19.6]} 32. Qd3 {[%clk 0:00:51.7]} 32... Be7 {[%clk 0:01:15.4]} 33. g3
{[%clk 0:00:42.3]} 33... a5 {[%clk 0:00:42.1]} 34. bxa5 {[%clk 0:00:33.2]} 34...
b5 {[%clk 0:00:42.1]} 35. Qc3 {[%clk 0:00:33.9]} 35... bxc4 {[%clk 0:00:33.9]}
36. a6 {[%clk 0:00:33.1]} 36... Bf6 {[%clk 0:00:28.1]} 37. Qb4 {[%clk 0:00:33]}
37... Bxb2 {[%clk 0:00:26.1]} 38. Qxb2 {[%clk 0:00:33.9]} 38... c3 {[%clk
0:00:26.3]} 39. Qc2 {[%clk 0:00:32.9]} 39... Nb6 {[%clk 0:00:25.8]} 40. a7
{[%clk 0:00:25.7]} 40... Qc4 {[%clk 0:00:22.1]} 41. Kh2 {[%clk 0:00:21.3]} 41...
Qa6 {[%clk 0:00:20.2]} 42. Qxc3 {[%clk 0:00:19.5]} 42... Qxa7 {[%clk 0:00:20.7]}
43. Qh8+ {[%clk 0:00:19.6]} 43... Ke7 {[%clk 0:00:21.3]} 44. Qxh6 {[%clk
0:00:19.5]} 44... Qxa3 {[%clk 0:00:21.4]} 45. Qg5+ {[%clk 0:00:20.1]} 45... Kd7
{[%clk 0:00:20.3]} 46. Qb5+ {[%clk 0:00:20.2]} 46... Kc7 {[%clk 0:00:20.7]} 47.
Kg2 {[%clk 0:00:20.4]} 47... Nd7 {[%clk 0:00:19.9]} 48. h4 {[%clk 0:00:18.5]}
48... Qc5 {[%clk 0:00:20.2]} 49. Qd3 {[%clk 0:00:17.1]} 49... Qd6 {[%clk
0:00:19.8]} 50. Qf3 {[%clk 0:00:15.9]} 50... Ne5 {[%clk 0:00:20]} 51. Qf6 {[%clk
0:00:16.2]} 51... Kc6 {[%clk 0:00:17.3]} 52. Kh3 {[%clk 0:00:13.9]} 52... Qc7
{[%clk 0:00:13.9]} 53. f4 {[%clk 0:00:12.1]} 53... Nc4 {[%clk 0:00:14.3]} 54.
Qd4 {[%clk 0:00:11.6]} 54... Kb5 {[%clk 0:00:14.6]} 55. h5 {[%clk 0:00:08.7]}
55... gxh5 {[%clk 0:00:14.4]} 56. Kh4 {[%clk 0:00:09.4]} 56... Nb6 {[%clk
0:00:14.6]} 57. Kxh5 {[%clk 0:00:08.2]} 57... Qc5+ {[%clk 0:00:15.2]} 58. Qxc5+
{[%clk 0:00:08]} 58... Kxc5 {[%clk 0:00:16.1]} 59. Kg5 {[%clk 0:00:08.9]} 59...
Kd4 {[%clk 0:00:15.2]} 60. Kf6 {[%clk 0:00:09.8]} 60... Kxe4 {[%clk 0:00:15.7]}
61. Kxf7 {[%clk 0:00:10.7]} 61... Kd5 {[%clk 0:00:15.4]} 62. g4 {[%clk
0:00:09.3]} 62... Nc4 {[%clk 0:00:15.5]} 63. g5 {[%clk 0:00:08.7]} 63... Nd6+
{[%clk 0:00:14.9]} 64. Kf6 {[%clk 0:00:09.2]} 64... Ne8+ {[%clk 0:00:09.7]} 65.
Kf7 {[%clk 0:00:08.4]} 65... Nd6+ {[%clk 0:00:10.2]} 66. Kf6 {[%clk 0:00:09]}
66... Ne4+ {[%clk 0:00:10.6]} 67. Kf7 {[%clk 0:00:07.7]} 67... Ng3 {[%clk
0:00:10.1]} 68. g6 {[%clk 0:00:06.3]} 68... Nf5 {[%clk 0:00:10.5]} 69. g7 {[%clk
0:00:05]} 69... Nh6+ {[%clk 0:00:11]} 70. Kg6 {[%clk 0:00:03.8]} 70... Ng8
{[%clk 0:00:10.5]} 71. Kf7 {[%clk 0:00:03.8]} 71... Nh6+ {[%clk 0:00:10.9]} 72.
Kg6 {[%clk 0:00:04.5]} 72... Ng8 {[%clk 0:00:11.2]} 73. Kf7 {[%clk 0:00:04.9]}
73... Nh6+ {[%clk 0:00:11.2]} 1/2-1/2